[Event "Early-Titled-Tuesday-Blitz-October-10-2023"]
[Site "Chess.com"]
[Date "2023.10.10"]
[Round "4"]
[White "Grandmaster1369"]
[Black "LeninGuerra"]
[Result "0-1"]
[WhiteElo "2784"]
[BlackElo "2577"]
[TimeControl "180+1"]
[EndTime "8:37:57 PDT"]
[Termination "LeninGuerra won on time"]

1. e4 {[%clk 0:02:59.7]} 1... c5 {[%clk 0:03:00.2]} 2. Nc3 {[%clk 0:03:00.3]}
2... e6 {[%clk 0:03:00.5]} 3. f4 {[%clk 0:02:58]} 3... Nc6 {[%clk 0:03:00.5]} 4.
Nf3 {[%clk 0:02:58.6]} 4... d5 {[%clk 0:03:01]} 5. Bb5 {[%clk 0:02:59.3]} 5...
d4 {[%clk 0:03:00.6]} 6. Bxc6+ {[%clk 0:02:59.6]} 6... bxc6 {[%clk 0:03:00.5]}
7. Ne2 {[%clk 0:03:00.2]} 7... Nf6 {[%clk 0:03:00.9]} 8. d3 {[%clk 0:03:00.4]}
8... Be7 {[%clk 0:03:00.8]} 9. b3 {[%clk 0:03:00.9]} 9... O-O {[%clk 0:03:00.9]}
10. O-O {[%clk 0:03:01.5]} 10... a5 {[%clk 0:02:52.7]} 11. a4 {[%clk 0:03:02]}
11... c4 {[%clk 0:02:35.5]} 12. bxc4 {[%clk 0:03:01.6]} 12... c5 {[%clk
0:02:35.6]} 13. Ng3 {[%clk 0:02:59]} 13... Bd7 {[%clk 0:02:31.8]} 14. Bd2 {[%clk
0:02:44.4]} 14... Ng4 {[%clk 0:02:18.6]} 15. h3 {[%clk 0:02:37.4]} 15... Ne3
{[%clk 0:02:17.5]} 16. Bxe3 {[%clk 0:02:33.6]} 16... dxe3 {[%clk 0:02:18.4]} 17.
Re1 {[%clk 0:02:01.9]} 17... Qc7 {[%clk 0:02:17]} 18. e5 {[%clk 0:01:57.5]}
18... Bc6 {[%clk 0:02:07.9]} 19. Rxe3 {[%clk 0:01:56.9]} 19... Rfb8 {[%clk
0:02:06.7]} 20. f5 {[%clk 0:01:54.4]} 20... Rb4 {[%clk 0:01:55.4]} 21. c3 {[%clk
0:01:54.2]} 21... Rb2 {[%clk 0:01:56]} 22. Qc1 {[%clk 0:01:45.7]} 22... Qb7
{[%clk 0:01:42.7]} 23. f6 {[%clk 0:01:42.7]} 23... gxf6 {[%clk 0:01:40.1]} 24.
Nh5 {[%clk 0:01:43.1]} 24... Kh8 {[%clk 0:01:32.7]} 25. exf6 {[%clk 0:01:36.7]}
25... Rg8 {[%clk 0:01:16.6]} 26. Qf1 {[%clk 0:00:58.2]} 26... Rbxg2+ {[%clk
0:01:08.3]} 27. Qxg2 {[%clk 0:00:58.3]} 27... Rxg2+ {[%clk 0:01:08.9]} 28. Kxg2
{[%clk 0:00:58.6]} 28... Qb2+ {[%clk 0:01:06.9]} 29. Kf1 {[%clk 0:00:42.1]}
29... Qxa1+ {[%clk 0:01:00.3]} 30. Re1 {[%clk 0:00:42.6]} 30... Qxc3 {[%clk
0:00:52.5]} 31. Ne5 {[%clk 0:00:42.9]} 31... Bd6 {[%clk 0:00:38.8]} 32. Nxf7+
{[%clk 0:00:14.8]} 32... Kg8 {[%clk 0:00:38.4]} 33. Nh6+ {[%clk 0:00:12.4]}
33... Kf8 {[%clk 0:00:37]} 34. Re3 {[%clk 0:00:06.1]} 34... Qc1+ {[%clk
0:00:29.2]} 35. Ke2 {[%clk 0:00:06]} 35... Qc2+ {[%clk 0:00:25.5]} 36. Kf1
{[%clk 0:00:06]} 36... Qg2+ {[%clk 0:00:17.5]} 37. Ke1 {[%clk 0:00:06.5]} 37...
Qg5 {[%clk 0:00:17.5]} 0-1

[Event "Early-Titled-Tuesday-Blitz-October-10-2023"]
[Site "Chess.com"]
[Date "2023.10.10"]
[Round "4"]
[White "RCone"]
[Black "cycygogne"]
[Result "0-1"]
[WhiteElo "2478"]
[BlackElo "2265"]
[TimeControl "180+1"]
[EndTime "8:37:57 PDT"]
[Termination "cycygogne won on time"]

1. e4 {[%clk 0:03:00.9]} 1... d5 {[%clk 0:02:59.7]} 2. exd5 {[%clk 0:03:00.5]}
2... Qxd5 {[%clk 0:03:00.3]} 3. Nc3 {[%clk 0:03:00.5]} 3... Qd6 {[%clk
0:03:00.5]} 4. d4 {[%clk 0:03:00.5]} 4... Nf6 {[%clk 0:02:59.9]} 5. Nf3 {[%clk
0:03:00.9]} 5... Bg4 {[%clk 0:02:59.5]} 6. h3 {[%clk 0:02:58.9]} 6... Bh5 {[%clk
0:02:59.1]} 7. g3 {[%clk 0:02:58.5]} 7... a6 {[%clk 0:02:55.1]} 8. Bg2 {[%clk
0:02:57.7]} 8... e6 {[%clk 0:02:55]} 9. O-O {[%clk 0:02:41.8]} 9... Nc6 {[%clk
0:02:52.4]} 10. Bf4 {[%clk 0:02:37.1]} 10... Qd7 {[%clk 0:02:52.4]} 11. g4
{[%clk 0:02:23.8]} 11... Bg6 {[%clk 0:02:50.1]} 12. Qe2 {[%clk 0:02:14]} 12...
O-O-O {[%clk 0:02:44.7]} 13. Rfd1 {[%clk 0:02:11.8]} 13... Nd5 {[%clk
0:02:39.9]} 14. Nxd5 {[%clk 0:01:55.9]} 14... exd5 {[%clk 0:02:40.4]} 15. c4
{[%clk 0:01:46.3]} 15... Be4 {[%clk 0:02:32]} 16. cxd5 {[%clk 0:01:39.4]} 16...
Qxd5 {[%clk 0:02:26.9]} 17. Rac1 {[%clk 0:01:28.1]} 17... Bd6 {[%clk 0:02:14.6]}
18. Bxd6 {[%clk 0:01:01.8]} 18... cxd6 {[%clk 0:02:14.7]} 19. Nh4 {[%clk
0:00:36.2]} 19... Bxg2 {[%clk 0:02:13.8]} 20. Nxg2 {[%clk 0:00:36.7]} 20... Rhe8
{[%clk 0:02:10.6]} 21. Ne3 {[%clk 0:00:36.4]} 21... Kb8 {[%clk 0:01:55]} 22. Qd2
{[%clk 0:00:26.6]} 22... Qf3 {[%clk 0:01:51.5]} 23. Kh2 {[%clk 0:00:13.3]} 23...
h5 {[%clk 0:01:39.9]} 24. gxh5 {[%clk 0:00:10.7]} 24... Rh8 {[%clk 0:01:39.9]}
25. Rg1 {[%clk 0:00:09.4]} 25... Rxh5 {[%clk 0:01:34.7]} 26. Rg3 {[%clk
0:00:10.1]} 26... Qf4 {[%clk 0:01:32.4]} 27. b4 {[%clk 0:00:08.1]} 27... Nxd4
{[%clk 0:01:31.2]} 28. Qd1 {[%clk 0:00:04.6]} 28... Rdh8 {[%clk 0:01:28.8]} 29.
Qf1 {[%clk 0:00:03.7]} 29... Nf3+ {[%clk 0:01:23.1]} 30. Kg2 {[%clk 0:00:02.4]}
30... Nh4+ {[%clk 0:01:14.2]} 31. Kg1 {[%clk 0:00:02.4]} 31... Nf3+ {[%clk
0:01:06.5]} 32. Kg2 {[%clk 0:00:02.8]} 32... Ne5 {[%clk 0:01:04]} 33. Qe2 {[%clk
0:00:02.6]} 33... g5 {[%clk 0:00:57.9]} 34. Rh1 {[%clk 0:00:02.5]} 34... g4
{[%clk 0:00:56.6]} 35. Rh2 {[%clk 0:00:02.9]} 35... gxh3+ {[%clk 0:00:56]} 36.
Rhxh3 {[%clk 0:00:03.8]} 36... Rxh3 {[%clk 0:00:56.1]} 37. Rxh3 {[%clk
0:00:04.6]} 37... Qe4+ {[%clk 0:00:48.1]} 38. Kh2 {[%clk 0:00:04.2]} 38... Nf3+
{[%clk 0:00:38.7]} 39. Kg2 {[%clk 0:00:01.9]} 39... Rg8+ {[%clk 0:00:31.9]} 40.
Rg3 {[%clk 0:00:01.6]} 40... Nd4+ {[%clk 0:00:25]} 41. f3 {[%clk 0:00:01.7]}
41... Rxg3+ {[%clk 0:00:24.1]} 42. Kxg3 {[%clk 0:00:02]} 42... Qg6+ {[%clk
0:00:24.2]} 0-1

[Event "Early-Titled-Tuesday-Blitz-October-10-2023"]
[Site "Chess.com"]
[Date "2023.10.10"]
[Round "4"]
[White "elprimo2012mortis"]
[Black "Hrant_ChessMood"]
[Result "1-0"]
[WhiteElo "2641"]
[BlackElo "2927"]
[TimeControl "180+1"]
[EndTime "8:37:58 PDT"]
[Termination "elprimo2012mortis won by checkmate"]

1. e4 {[%clk 0:03:00.9]} 1... c6 {[%clk 0:02:38.3]} 2. d4 {[%clk 0:03:00]} 2...
d5 {[%clk 0:02:36.2]} 3. e5 {[%clk 0:03:00.5]} 3... Bf5 {[%clk 0:02:34.8]} 4. h4
{[%clk 0:03:00.9]} 4... h5 {[%clk 0:02:34.2]} 5. c4 {[%clk 0:03:01.3]} 5... e6
{[%clk 0:02:33.9]} 6. Nc3 {[%clk 0:03:01.8]} 6... Nd7 {[%clk 0:02:34.1]} 7. cxd5
{[%clk 0:03:01.5]} 7... cxd5 {[%clk 0:02:34.2]} 8. Bd3 {[%clk 0:03:01.9]} 8...
Ne7 {[%clk 0:02:30.6]} 9. Bg5 {[%clk 0:03:01.7]} 9... Bxd3 {[%clk 0:02:19.1]}
10. Qxd3 {[%clk 0:03:02.6]} 10... Qb6 {[%clk 0:02:19.3]} 11. Nge2 {[%clk
0:02:43.8]} 11... Nc6 {[%clk 0:01:44.9]} 12. O-O {[%clk 0:02:30.9]} 12... Be7
{[%clk 0:01:45.2]} 13. Bxe7 {[%clk 0:02:27.9]} 13... Nxe7 {[%clk 0:01:41.7]} 14.
Ng3 {[%clk 0:02:08.9]} 14... a6 {[%clk 0:01:28.4]} 15. Rac1 {[%clk 0:02:02.6]}
15... Nb8 {[%clk 0:01:15.6]} 16. Na4 {[%clk 0:01:52.5]} 16... Qb5 {[%clk
0:01:11.8]} 17. Qxb5+ {[%clk 0:01:39.6]} 17... axb5 {[%clk 0:01:12.7]} 18. Nb6
{[%clk 0:01:39.5]} 18... Rxa2 {[%clk 0:01:03.2]} 19. Rc7 {[%clk 0:01:38.2]}
19... Nbc6 {[%clk 0:00:58.3]} 20. Rxb7 {[%clk 0:00:49.4]} 20... O-O {[%clk
0:00:52.8]} 21. Nd7 {[%clk 0:00:47]} 21... Rd8 {[%clk 0:00:48.7]} 22. Nxh5
{[%clk 0:00:44.6]} 22... Rxb2 {[%clk 0:00:39.3]} 23. Rc1 {[%clk 0:00:36.7]}
23... Nxd4 {[%clk 0:00:35.6]} 24. Rcc7 {[%clk 0:00:33.4]} 24... Ndf5 {[%clk
0:00:21.6]} 25. g4 {[%clk 0:00:30.4]} 25... Ra8 {[%clk 0:00:06]} 26. gxf5 {[%clk
0:00:25.4]} 26... Nxf5 {[%clk 0:00:06]} 27. Ra7 {[%clk 0:00:18.6]} 27... Rxa7
{[%clk 0:00:03.1]} 28. Rxa7 {[%clk 0:00:19.5]} 28... d4 {[%clk 0:00:03.8]} 29.
Nf4 {[%clk 0:00:14.8]} 29... Nxh4 {[%clk 0:00:03.5]} 30. Ra8+ {[%clk 0:00:15]}
30... Kh7 {[%clk 0:00:04]} 31. Nf8+ {[%clk 0:00:15.5]} 31... Kh6 {[%clk
0:00:04.2]} 32. Nd7 {[%clk 0:00:14.1]} 32... Nf3+ {[%clk 0:00:03.5]} 33. Kg2
{[%clk 0:00:14.1]} 33... Nh4+ {[%clk 0:00:03.6]} 34. Kg3 {[%clk 0:00:14.2]}
34... Nf5+ {[%clk 0:00:03.7]} 35. Kg4 {[%clk 0:00:14.3]} 35... Kh7 {[%clk
0:00:03.6]} 36. Nf8+ {[%clk 0:00:14.1]} 36... Kh6 {[%clk 0:00:03.7]} 37. N8xe6
{[%clk 0:00:12.5]} 37... g6 {[%clk 0:00:03.7]} 38. Rh8# {[%clk 0:00:11.6]} 1-0

[Event "Early-Titled-Tuesday-Blitz-October-10-2023"]
[Site "Chess.com"]
[Date "2023.10.10"]
[Round "4"]
[White "Casper"]
[Black "juancruzarias"]
[Result "0-1"]
[WhiteElo "2440"]
[BlackElo "2638"]
[TimeControl "180+1"]
[EndTime "8:37:59 PDT"]
[Termination "juancruzarias won on time"]

1. e4 {[%clk 0:03:00.9]} 1... e6 {[%clk 0:02:41.8]} 2. Nf3 {[%clk 0:02:58.4]}
2... d5 {[%clk 0:02:40.1]} 3. Nc3 {[%clk 0:02:59.3]} 3... Nf6 {[%clk 0:02:37.4]}
4. exd5 {[%clk 0:02:57.5]} 4... exd5 {[%clk 0:02:37.1]} 5. d4 {[%clk 0:02:58.4]}
5... Bb4 {[%clk 0:02:34.9]} 6. Bd3 {[%clk 0:02:56.1]} 6... O-O {[%clk
0:02:32.4]} 7. O-O {[%clk 0:02:56.3]} 7... Bg4 {[%clk 0:02:30.7]} 8. Bg5 {[%clk
0:02:52.4]} 8... c6 {[%clk 0:02:26.5]} 9. Re1 {[%clk 0:02:50.7]} 9... Nbd7
{[%clk 0:02:25.3]} 10. Qd2 {[%clk 0:02:34.9]} 10... Re8 {[%clk 0:01:15.2]} 11.
Ne5 {[%clk 0:02:29.8]} 11... Bh5 {[%clk 0:01:06]} 12. Qf4 {[%clk 0:02:03.2]}
12... Be7 {[%clk 0:01:00.2]} 13. Re3 {[%clk 0:01:51.7]} 13... Bg6 {[%clk
0:00:59.8]} 14. Bxg6 {[%clk 0:01:41]} 14... hxg6 {[%clk 0:00:58.6]} 15. Nxd7
{[%clk 0:00:31.2]} 15... Qxd7 {[%clk 0:00:58.2]} 16. Qh4 {[%clk 0:00:28.4]}
16... Bd8 {[%clk 0:00:45.7]} 17. Rh3 {[%clk 0:00:21.2]} 17... Nh5 {[%clk
0:00:45.1]} 18. g4 {[%clk 0:00:21.1]} 18... Bxg5 {[%clk 0:00:43.3]} 19. Qxg5
{[%clk 0:00:21.7]} 19... Nf6 {[%clk 0:00:43.7]} 20. f3 {[%clk 0:00:18.7]} 20...
Re6 {[%clk 0:00:21.3]} 21. Qh4 {[%clk 0:00:17.7]} 21... Kf8 {[%clk 0:00:21.6]}
22. Qh8+ {[%clk 0:00:07.2]} 22... Ng8 {[%clk 0:00:22]} 23. Qh4 {[%clk
0:00:07.9]} 23... Rae8 {[%clk 0:00:21.1]} 24. f4 {[%clk 0:00:05.5]} 24... Re3
{[%clk 0:00:19.8]} 25. Rxe3 {[%clk 0:00:03.4]} 25... Rxe3 {[%clk 0:00:20.7]} 26.
Kf2 {[%clk 0:00:04]} 26... Qe7 {[%clk 0:00:20.2]} 27. Qxe7+ {[%clk 0:00:03.9]}
27... Rxe7 {[%clk 0:00:21.1]} 28. Re1 {[%clk 0:00:04.3]} 28... Nf6 {[%clk
0:00:21.3]} 29. Rxe7 {[%clk 0:00:04]} 29... Kxe7 {[%clk 0:00:22.2]} 30. Kf3
{[%clk 0:00:04.9]} 30... Nd7 {[%clk 0:00:22.7]} 31. Na4 {[%clk 0:00:04.9]} 31...
b6 {[%clk 0:00:22.7]} 32. b4 {[%clk 0:00:04.5]} 32... Kd6 {[%clk 0:00:22.8]} 33.
Nc3 {[%clk 0:00:04.7]} 33... Nb8 {[%clk 0:00:22.5]} 34. b5 {[%clk 0:00:02.7]}
34... Nd7 {[%clk 0:00:19.8]} 35. a4 {[%clk 0:00:02.3]} 35... c5 {[%clk
0:00:18.5]} 36. Ne2 {[%clk 0:00:02]} 36... Nf6 {[%clk 0:00:16.3]} 0-1

[Event "Early-Titled-Tuesday-Blitz-October-10-2023"]
[Site "Chess.com"]
[Date "2023.10.10"]
[Round "4"]
[White "KorolDimitriy75"]
[Black "Fh2411"]
[Result "1-0"]
[WhiteElo "2400"]
[BlackElo "2559"]
[TimeControl "180+1"]
[EndTime "8:37:59 PDT"]
[Termination "KorolDimitriy75 won by resignation"]

1. d4 {[%clk 0:03:00.9]} 1... Nf6 {[%clk 0:02:55.3]} 2. c4 {[%clk 0:03:01]} 2...
e6 {[%clk 0:02:54]} 3. Nc3 {[%clk 0:03:01.3]} 3... Bb4 {[%clk 0:02:54.7]} 4. Qc2
{[%clk 0:03:01.5]} 4... d5 {[%clk 0:02:48.6]} 5. cxd5 {[%clk 0:03:00.4]} 5...
exd5 {[%clk 0:02:49.5]} 6. Bg5 {[%clk 0:03:00.5]} 6... O-O {[%clk 0:02:47.7]} 7.
e3 {[%clk 0:03:00.1]} 7... h6 {[%clk 0:02:47.1]} 8. Bxf6 {[%clk 0:02:54.7]} 8...
Qxf6 {[%clk 0:02:48]} 9. a3 {[%clk 0:02:55.2]} 9... Bxc3+ {[%clk 0:02:41.2]} 10.
Qxc3 {[%clk 0:02:56.1]} 10... c6 {[%clk 0:02:41.5]} 11. Ne2 {[%clk 0:02:53]}
11... Re8 {[%clk 0:02:32.7]} 12. Ng3 {[%clk 0:02:52.8]} 12... Nd7 {[%clk
0:02:25.6]} 13. Be2 {[%clk 0:02:51.7]} 13... Nf8 {[%clk 0:02:24.2]} 14. O-O
{[%clk 0:02:51.2]} 14... g6 {[%clk 0:02:15]} 15. Rfc1 {[%clk 0:02:29.6]} 15...
h5 {[%clk 0:02:05.3]} 16. h3 {[%clk 0:02:29.2]} 16... Ne6 {[%clk 0:01:56]} 17.
b4 {[%clk 0:02:13.7]} 17... h4 {[%clk 0:01:51.3]} 18. Nf1 {[%clk 0:02:06.9]}
18... Ng5 {[%clk 0:01:51.7]} 19. f3 {[%clk 0:01:57.1]} 19... Bxh3 {[%clk
0:01:41.6]} 20. gxh3 {[%clk 0:01:30.9]} 20... Nxf3+ {[%clk 0:01:38.6]} 21. Bxf3
{[%clk 0:01:24.5]} 21... Qxf3 {[%clk 0:01:39.5]} 22. Ra2 {[%clk 0:01:12.2]}
22... Qxh3 {[%clk 0:01:39.2]} 23. Qd3 {[%clk 0:00:36.8]} 23... Re4 {[%clk
0:01:35.4]} 24. Rg2 {[%clk 0:00:36]} 24... Rae8 {[%clk 0:01:33.2]} 25. Rcc2
{[%clk 0:00:34]} 25... Qf5 {[%clk 0:01:11.7]} 26. Rcf2 {[%clk 0:00:33.9]} 26...
Qh5 {[%clk 0:01:09.9]} 27. b5 {[%clk 0:00:28.1]} 27... h3 {[%clk 0:00:43.2]} 28.
Rg3 {[%clk 0:00:27.6]} 28... Rg4 {[%clk 0:00:40.3]} 29. Qe2 {[%clk 0:00:13.4]}
29... Ree4 {[%clk 0:00:39.8]} 30. Qf3 {[%clk 0:00:11.3]} 30... f5 {[%clk
0:00:38.5]} 31. Kh2 {[%clk 0:00:10.7]} 31... Kg7 {[%clk 0:00:29.4]} 32. bxc6
{[%clk 0:00:10]} 32... bxc6 {[%clk 0:00:28.6]} 33. Rxg4 {[%clk 0:00:08.6]} 33...
Rxg4 {[%clk 0:00:27.2]} 34. Ng3 {[%clk 0:00:08.6]} 34... Qh4 {[%clk 0:00:22.3]}
35. Rb2 {[%clk 0:00:06.8]} 35... Kh6 {[%clk 0:00:20.4]} 36. Rb8 {[%clk
0:00:05.8]} 36... Re4 {[%clk 0:00:20.6]} 37. Rh8+ {[%clk 0:00:05.2]} 37... Kg5
{[%clk 0:00:21.1]} 38. Rxh4 {[%clk 0:00:05.3]} 38... Kxh4 {[%clk 0:00:22]} 39.
Ne2 {[%clk 0:00:04.9]} 39... Kg5 {[%clk 0:00:21]} 40. Nf4 {[%clk 0:00:04.7]} 1-0

[Event "Early-Titled-Tuesday-Blitz-October-10-2023"]
[Site "Chess.com"]
[Date "2023.10.10"]
[Round "4"]
[White "ViktoriyaTarasova"]
[Black "koncheto"]
[Result "0-1"]
[WhiteElo "2364"]
[BlackElo "2528"]
[TimeControl "180+1"]
[EndTime "8:37:59 PDT"]
[Termination "koncheto won by checkmate"]

1. d4 {[%clk 0:03:00.9]} 1... Nf6 {[%clk 0:02:46.2]} 2. c4 {[%clk 0:03:00.1]}
2... e6 {[%clk 0:02:46.4]} 3. Nc3 {[%clk 0:03:00]} 3... c5 {[%clk 0:02:46.8]} 4.
d5 {[%clk 0:02:59.5]} 4... exd5 {[%clk 0:02:47.7]} 5. cxd5 {[%clk 0:02:59.9]}
5... d6 {[%clk 0:02:48.6]} 6. Nf3 {[%clk 0:02:56.7]} 6... g6 {[%clk 0:02:49.1]}
7. Bf4 {[%clk 0:02:56.9]} 7... a6 {[%clk 0:02:48.9]} 8. a4 {[%clk 0:02:55.6]}
8... Qe7 {[%clk 0:02:49.1]} 9. e3 {[%clk 0:02:52.2]} 9... Bg4 {[%clk 0:02:48.4]}
10. Be2 {[%clk 0:02:50.3]} 10... Bxf3 {[%clk 0:02:47.8]} 11. Bxf3 {[%clk
0:02:50.4]} 11... Bg7 {[%clk 0:02:48.7]} 12. O-O {[%clk 0:02:50.3]} 12... O-O
{[%clk 0:02:47.3]} 13. e4 {[%clk 0:02:44.9]} 13... Nbd7 {[%clk 0:02:46.8]} 14.
Qc2 {[%clk 0:02:42.7]} 14... Rac8 {[%clk 0:02:46.4]} 15. Rfe1 {[%clk 0:02:38.7]}
15... Ne5 {[%clk 0:02:46.6]} 16. Be2 {[%clk 0:02:38.6]} 16... Nfd7 {[%clk
0:02:44.3]} 17. h3 {[%clk 0:02:36.6]} 17... Rfe8 {[%clk 0:02:25.5]} 18. Bh2
{[%clk 0:02:35.5]} 18... c4 {[%clk 0:02:16.8]} 19. f4 {[%clk 0:01:36.5]} 19...
Nd3 {[%clk 0:02:17.1]} 20. Bxd3 {[%clk 0:01:36.6]} 20... cxd3 {[%clk 0:02:18]}
21. Qxd3 {[%clk 0:01:37.2]} 21... Nc5 {[%clk 0:02:18.9]} 22. Qf3 {[%clk
0:01:33.2]} 22... Bxc3 {[%clk 0:02:19.3]} 23. Qxc3 {[%clk 0:01:30.6]} 23... Nxe4
{[%clk 0:02:17.8]} 24. Qd4 {[%clk 0:01:31]} 24... f5 {[%clk 0:02:15.5]} 25. Rac1
{[%clk 0:01:24.2]} 25... Qd7 {[%clk 0:02:08]} 26. b3 {[%clk 0:01:20.6]} 26...
Rxc1 {[%clk 0:02:06.2]} 27. Rxc1 {[%clk 0:01:19]} 27... Rc8 {[%clk 0:02:07.1]}
28. Re1 {[%clk 0:01:14.3]} 28... Rc3 {[%clk 0:01:34.5]} 29. g4 {[%clk 0:00:55]}
29... Rxh3 {[%clk 0:01:23.3]} 30. gxf5 {[%clk 0:00:52]} 30... gxf5 {[%clk
0:01:18.1]} 31. Kh1 {[%clk 0:00:51.2]} 31... Rh6 {[%clk 0:01:02.9]} 32. Rg1+
{[%clk 0:00:43.2]} 32... Rg6 {[%clk 0:01:02.6]} 33. Qa7 {[%clk 0:00:38.9]} 33...
Kf7 {[%clk 0:00:43.4]} 34. Rxg6 {[%clk 0:00:34.2]} 34... hxg6 {[%clk 0:00:42.6]}
35. Qd4 {[%clk 0:00:34.4]} 35... Qc7 {[%clk 0:00:35.4]} 36. Qh8 {[%clk
0:00:32.2]} 36... Qc1+ {[%clk 0:00:28.5]} 37. Bg1 {[%clk 0:00:29]} 37... Qxf4
{[%clk 0:00:16]} 38. Qh7+ {[%clk 0:00:22.9]} 38... Kf6 {[%clk 0:00:16.4]} 39.
Bd4+ {[%clk 0:00:20.5]} 39... Kg5 {[%clk 0:00:14.2]} 40. Qe7+ {[%clk 0:00:20.3]}
40... Kg4 {[%clk 0:00:13.8]} 41. Qh7 {[%clk 0:00:19.4]} 41... Ng3+ {[%clk
0:00:09.6]} 42. Kg2 {[%clk 0:00:19.6]} 42... Qf1+ {[%clk 0:00:06.5]} 43. Kh2
{[%clk 0:00:18.6]} 43... Qh1# {[%clk 0:00:06.9]} 0-1

[Event "Early-Titled-Tuesday-Blitz-October-10-2023"]
[Site "Chess.com"]
[Date "2023.10.10"]
[Round "4"]
[White "Irina_Mikhaylova"]
[Black "bennyficial"]
[Result "1/2-1/2"]
[WhiteElo "2295"]
[BlackElo "2136"]
[TimeControl "180+1"]
[EndTime "8:38:00 PDT"]
[Termination "Game drawn by repetition"]

1. d4 {[%clk 0:03:00]} 1... Nf6 {[%clk 0:02:59.3]} 2. Nf3 {[%clk 0:03:00.4]}
2... d5 {[%clk 0:02:59]} 3. c4 {[%clk 0:03:00.8]} 3... e6 {[%clk 0:02:57]} 4.
Nc3 {[%clk 0:03:00.9]} 4... Bb4 {[%clk 0:02:56.8]} 5. Bg5 {[%clk 0:03:00.8]}
5... dxc4 {[%clk 0:02:51.8]} 6. e4 {[%clk 0:02:58.2]} 6... h6 {[%clk 0:02:36.9]}
7. Bxf6 {[%clk 0:02:57.7]} 7... Qxf6 {[%clk 0:02:35.5]} 8. Bxc4 {[%clk
0:02:57.9]} 8... c5 {[%clk 0:02:31.1]} 9. Rc1 {[%clk 0:02:56]} 9... O-O {[%clk
0:02:24.2]} 10. dxc5 {[%clk 0:02:50.5]} 10... Na6 {[%clk 0:02:09.6]} 11. c6
{[%clk 0:02:11.9]} 11... bxc6 {[%clk 0:02:02.6]} 12. O-O {[%clk 0:01:33.6]}
12... e5 {[%clk 0:01:57.2]} 13. Qa4 {[%clk 0:01:21.2]} 13... Bxc3 {[%clk
0:01:52.1]} 14. Rxc3 {[%clk 0:01:21.4]} 14... Nc5 {[%clk 0:01:48.4]} 15. Qc2
{[%clk 0:01:20.7]} 15... Ne6 {[%clk 0:01:26.8]} 16. Bxe6 {[%clk 0:01:15.7]}
16... Bxe6 {[%clk 0:01:27.7]} 17. Rxc6 {[%clk 0:01:15.8]} 17... Qf4 {[%clk
0:01:28.3]} 18. Re1 {[%clk 0:01:06.8]} 18... Rac8 {[%clk 0:01:21.5]} 19. b3
{[%clk 0:00:59.6]} 19... Bg4 {[%clk 0:01:00.4]} 20. Rxc8 {[%clk 0:00:49.9]}
20... Rxc8 {[%clk 0:00:59.7]} 21. Qd2 {[%clk 0:00:50.1]} 21... Bxf3 {[%clk
0:00:27.1]} 22. Qxf4 {[%clk 0:00:49.4]} 22... exf4 {[%clk 0:00:28]} 23. gxf3
{[%clk 0:00:49.7]} 23... Rc2 {[%clk 0:00:28.4]} 24. Ra1 {[%clk 0:00:40.6]} 24...
Rb2 {[%clk 0:00:27.9]} 25. Kg2 {[%clk 0:00:40.2]} 25... f6 {[%clk 0:00:26.7]}
26. Rc1 {[%clk 0:00:28.1]} 26... Rxa2 {[%clk 0:00:26.3]} 27. Rc8+ {[%clk
0:00:28.1]} 27... Kf7 {[%clk 0:00:25.7]} 28. Rc7+ {[%clk 0:00:28.2]} 28... Kg6
{[%clk 0:00:24.7]} 29. Rb7 {[%clk 0:00:28.1]} 29... h5 {[%clk 0:00:24.1]} 30. h4
{[%clk 0:00:26.8]} 30... Kh6 {[%clk 0:00:23]} 31. b4 {[%clk 0:00:25.1]} 31... g5
{[%clk 0:00:22.5]} 32. e5 {[%clk 0:00:20.1]} 32... fxe5 {[%clk 0:00:20.7]} 33.
hxg5+ {[%clk 0:00:20.1]} 33... Kxg5 {[%clk 0:00:20.7]} 34. Re7 {[%clk
0:00:20.2]} 34... Kf6 {[%clk 0:00:19.6]} 35. Rh7 {[%clk 0:00:20.3]} 35... Ra4
{[%clk 0:00:18.4]} 36. Rb7 {[%clk 0:00:17.8]} 36... Ra2 {[%clk 0:00:18.6]} 37.
b5 {[%clk 0:00:17.9]} 37... Ke6 {[%clk 0:00:18]} 38. b6 {[%clk 0:00:17.8]} 38...
axb6 {[%clk 0:00:16.9]} 39. Rxb6+ {[%clk 0:00:18.3]} 39... Kf5 {[%clk
0:00:17.4]} 40. Rh6 {[%clk 0:00:18.2]} 40... Kg5 {[%clk 0:00:17.6]} 41. Re6
{[%clk 0:00:18.4]} 41... Re2 {[%clk 0:00:17.2]} 42. Re8 {[%clk 0:00:18.5]} 42...
Kf5 {[%clk 0:00:15.8]} 43. Rf8+ {[%clk 0:00:18.6]} 43... Kg6 {[%clk 0:00:15.6]}
44. Rg8+ {[%clk 0:00:18.9]} 44... Kf7 {[%clk 0:00:15]} 45. Rh8 {[%clk
0:00:18.9]} 45... Kg6 {[%clk 0:00:14.6]} 46. Rg8+ {[%clk 0:00:19.2]} 46... Kf7
{[%clk 0:00:14.8]} 47. Rh8 {[%clk 0:00:19.4]} 47... Kg6 {[%clk 0:00:13.2]} 48.
Rg8+ {[%clk 0:00:19.6]} 1/2-1/2